[Event "*** SCC Grand Prix: Titled Tuesday Blitz"]
[Site "Chess.com"]
[Date "2020.06.02"]
[Round "2"]
[White "Firegrizzly"]
[Black "MNyuyu"]
[Result "1-0"]
[WhiteElo "2591"]
[BlackElo "2270"]
[TimeControl "180+1"]
[EndTime "10:17:17 PDT"]
[Termination "Firegrizzly won by resignation"]

1. d4 {[%clk 0:03:00.9]} 1... d5 {[%clk 0:02:59.7]} 2. Nf3 {[%clk 0:03:01.8]}
2... e6 {[%clk 0:02:58.5]} 3. Bf4 {[%clk 0:03:01.6]} 3... Be7 {[%clk 0:02:58.6]}
4. e3 {[%clk 0:03:01.3]} 4... Nf6 {[%clk 0:02:58.1]} 5. Bd3 {[%clk 0:03:00.9]}
5... O-O {[%clk 0:02:58.1]} 6. Nbd2 {[%clk 0:03:01.2]} 6... b6 {[%clk
0:02:57.9]} 7. Qe2 {[%clk 0:03:00]} 7... Bb7 {[%clk 0:02:57.8]} 8. c3 {[%clk
0:03:00.5]} 8... Nbd7 {[%clk 0:02:57.8]} 9. g4 {[%clk 0:02:57.1]} 9... c5 {[%clk
0:02:55]} 10. g5 {[%clk 0:02:52.9]} 10... Ne4 {[%clk 0:02:54.6]} 11. h4 {[%clk
0:02:52.6]} 11... a6 {[%clk 0:02:45.2]} 12. Bc2 {[%clk 0:02:43.5]} 12... Re8
{[%clk 0:02:44.6]} 13. Nxe4 {[%clk 0:02:43]} 13... dxe4 {[%clk 0:02:44.1]} 14.
Nd2 {[%clk 0:02:43.7]} 14... f5 {[%clk 0:02:41.9]} 15. gxf6 {[%clk 0:02:42.7]}
15... Nxf6 {[%clk 0:02:41.6]} 16. O-O-O {[%clk 0:02:39.2]} 16... b5 {[%clk
0:02:38.6]} 17. dxc5 {[%clk 0:02:37.9]} 17... Qa5 {[%clk 0:02:38.2]} 18. Bb3
{[%clk 0:02:35.3]} 18... b4 {[%clk 0:02:32.4]} 19. Bxe6+ {[%clk 0:02:33.3]}
19... Kh8 {[%clk 0:02:31.2]} 20. cxb4 {[%clk 0:02:32.2]} 20... Qxb4 {[%clk
0:02:30.6]} 21. Kb1 {[%clk 0:02:30]} 21... Bd5 {[%clk 0:02:26]} 22. Bxd5 {[%clk
0:02:27]} 22... Nxd5 {[%clk 0:02:25.6]} 23. Qc4 {[%clk 0:02:27.1]} 23... Qxc4
{[%clk 0:02:24.7]} 24. Nxc4 {[%clk 0:02:26.7]} 24... Nxf4 {[%clk 0:02:24.6]} 25.
exf4 {[%clk 0:02:27.6]} 25... Bxc5 {[%clk 0:02:23.8]} 26. Rd2 {[%clk 0:02:25.4]}
26... Rf8 {[%clk 0:02:22]} 27. h5 {[%clk 0:02:15.6]} 27... h6 {[%clk 0:02:20.9]}
28. Rh4 {[%clk 0:02:13.6]} 28... Rad8 {[%clk 0:02:18.2]} 29. Rxd8 {[%clk
0:02:12]} 29... Rxd8 {[%clk 0:02:17.6]} 30. f5 {[%clk 0:02:11.2]} 30... Bxf2
{[%clk 0:02:15.9]} 31. Rxe4 {[%clk 0:02:10.2]} 31... Rd5 {[%clk 0:02:08]} 32.
Re8+ {[%clk 0:02:05.1]} 32... Kh7 {[%clk 0:02:07]} 33. Ne5 {[%clk 0:02:05.7]}
33... Bh4 {[%clk 0:02:00.1]} 34. Ng6 {[%clk 0:02:04.9]} 34... Rd8 {[%clk
0:01:59.8]} 35. Rxd8 {[%clk 0:01:57.9]} 35... Bxd8 {[%clk 0:01:58.9]} 36. b4
{[%clk 0:01:57.8]} 36... Kg8 {[%clk 0:01:59]} 37. Ne5 {[%clk 0:01:49.8]} 37...
Bc7 {[%clk 0:01:57.8]} 38. Nd7 {[%clk 0:01:43.1]} 38... Kf7 {[%clk 0:01:56.8]}
39. Nc5 {[%clk 0:01:43.3]} 39... Bd6 {[%clk 0:01:50.6]} 40. Nxa6 {[%clk
0:01:42.3]} 40... Kf6 {[%clk 0:01:49.6]} 41. b5 {[%clk 0:01:40.8]} 41... Kxf5
{[%clk 0:01:48.5]} 42. b6 {[%clk 0:01:40]} 42... g5 {[%clk 0:01:46]} 43. hxg6
{[%clk 0:01:39.1]} 43... Kxg6 {[%clk 0:01:45.7]} 44. Kc2 {[%clk 0:01:32.4]}
44... h5 {[%clk 0:01:45]} 45. Kd3 {[%clk 0:01:29.2]} 45... h4 {[%clk 0:01:44.4]}
46. Ke2 {[%clk 0:01:26]} 46... h3 {[%clk 0:01:43.7]} 47. Kf3 {[%clk 0:01:26.2]}
47... h2 {[%clk 0:01:42.4]} 48. Kg2 {[%clk 0:01:26.1]} 48... Kf7 {[%clk
0:01:42]} 49. b7 {[%clk 0:01:24.6]} 49... Ke8 {[%clk 0:01:41.6]} 50. b8=Q+
{[%clk 0:01:24]} 50... Bxb8 {[%clk 0:01:39.9]} 51. Nxb8 {[%clk 0:01:24.9]} 51...
Kd8 {[%clk 0:01:40.6]} 52. Nc6+ {[%clk 0:01:23.8]} 52... Kc7 {[%clk 0:01:40.3]}
53. Nd4 {[%clk 0:01:21.9]} 53... Kb6 {[%clk 0:01:40]} 54. Nc2 {[%clk 0:01:21.3]}
54... Kc5 {[%clk 0:01:38.2]} 55. Kxh2 {[%clk 0:01:19.9]} 55... Kc4 {[%clk
0:01:38]} 56. Kg3 {[%clk 0:01:16.3]} 56... Kc3 {[%clk 0:01:37.5]} 57. a3 {[%clk
0:01:16.3]} 57... Kb3 {[%clk 0:01:25]} 58. Kf3 {[%clk 0:01:15.1]} 58... Ka4
{[%clk 0:01:23.1]} 59. Ke3 {[%clk 0:01:14.9]} 59... Ka5 {[%clk 0:01:22.6]} 60.
Kd3 {[%clk 0:01:15.2]} 60... Ka4 {[%clk 0:01:22.1]} 61. Kc4 {[%clk 0:01:14.8]}
61... Ka5 {[%clk 0:01:21.8]} 62. Kb3 {[%clk 0:01:14.9]} 62... Kb5 {[%clk
0:01:20]} 63. a4+ {[%clk 0:01:15.8]} 63... Ka5 {[%clk 0:01:19.6]} 64. Na3 {[%clk
0:01:16.1]} 64... Ka6 {[%clk 0:01:18.9]} 65. Kb4 {[%clk 0:01:17]} 65... Kb6
{[%clk 0:01:18.5]} 66. a5+ {[%clk 0:01:17.9]} 66... Ka6 {[%clk 0:01:18]} 67. Nc4
{[%clk 0:01:18.8]} 67... Ka7 {[%clk 0:01:17.3]} 68. Kb5 {[%clk 0:01:19.7]} 68...
Kb7 {[%clk 0:01:17]} 69. a6+ {[%clk 0:01:18.1]} 69... Ka7 {[%clk 0:01:16.4]} 70.
Nb6 {[%clk 0:01:18]} 70... Kb8 {[%clk 0:01:15.6]} 71. Nd5 {[%clk 0:01:15.3]}
71... Ka7 {[%clk 0:01:14.9]} 72. Ka5 {[%clk 0:01:15.3]} 72... Kb8 {[%clk
0:01:14.3]} 73. Kb6 {[%clk 0:01:14.3]} 1-0

[Event "*** SCC Grand Prix: Titled Tuesday Blitz"]
[Site "Chess.com"]
[Date "2020.06.02"]
[Round "2"]
[White "MalcolmPein"]
[Black "Aleksandar-Topalov"]
[Result "0-1"]
[WhiteElo "2200"]
[BlackElo "2432"]
[TimeControl "180+1"]
[EndTime "10:17:18 PDT"]
[Termination "Aleksandar-Topalov won on time"]

1. d4 {[%clk 0:02:59.7]} 1... Nf6 {[%clk 0:02:59.5]} 2. c4 {[%clk 0:02:58.8]}
2... c5 {[%clk 0:02:58.8]} 3. d5 {[%clk 0:02:57.7]} 3... d6 {[%clk 0:02:58.8]}
4. Nc3 {[%clk 0:02:57.7]} 4... g6 {[%clk 0:02:58.8]} 5. e4 {[%clk 0:02:58.1]}
5... Bg7 {[%clk 0:02:59.1]} 6. Be2 {[%clk 0:02:53.1]} 6... O-O {[%clk
0:02:59.1]} 7. Nf3 {[%clk 0:02:53]} 7... e6 {[%clk 0:02:58.2]} 8. Nd2 {[%clk
0:02:52.2]} 8... Na6 {[%clk 0:02:56]} 9. O-O {[%clk 0:02:51.3]} 9... Nc7 {[%clk
0:02:56.1]} 10. Re1 {[%clk 0:02:50.3]} 10... Rb8 {[%clk 0:02:56.1]} 11. h3
{[%clk 0:02:50.7]} 11... a6 {[%clk 0:02:56]} 12. a4 {[%clk 0:02:34]} 12... exd5
{[%clk 0:02:55]} 13. exd5 {[%clk 0:02:28.4]} 13... Re8 {[%clk 0:02:51.2]} 14.
Bd3 {[%clk 0:02:18.6]} 14... Bd7 {[%clk 0:02:47.5]} 15. Nde4 {[%clk 0:02:08.5]}
15... Nxe4 {[%clk 0:02:47.4]} 16. Nxe4 {[%clk 0:02:07.3]} 16... Bf5 {[%clk
0:02:47.4]} 17. Bg5 {[%clk 0:02:03.2]} 17... Qd7 {[%clk 0:02:43.1]} 18. Qd2
{[%clk 0:01:51.2]} 18... Bxe4 {[%clk 0:02:40.6]} 19. Rxe4 {[%clk 0:01:47.1]}
19... Rxe4 {[%clk 0:02:39.2]} 20. Bxe4 {[%clk 0:01:47.2]} 20... b5 {[%clk
0:02:39.3]} 21. axb5 {[%clk 0:01:46.8]} 21... axb5 {[%clk 0:02:39.6]} 22. Ra7
{[%clk 0:01:24.9]} 22... Qc8 {[%clk 0:01:48.4]} 23. b4 {[%clk 0:00:39.7]} 23...
bxc4 {[%clk 0:01:37.7]} 24. bxc5 {[%clk 0:00:39.7]} 24... Nb5 {[%clk 0:01:37.9]}
25. Re7 {[%clk 0:00:31.1]} 25... Qxc5 {[%clk 0:01:30.7]} 26. Qf4 {[%clk
0:00:21.9]} 26... Rf8 {[%clk 0:01:30.2]} 27. Rd7 {[%clk 0:00:15.1]} 27... c3
{[%clk 0:01:28.1]} 28. Be7 {[%clk 0:00:14.7]} 28... Qc8 {[%clk 0:01:17.9]} 29.
Bxf8 {[%clk 0:00:09.9]} 29... Qxd7 {[%clk 0:01:18]} 30. Bxg7 {[%clk 0:00:09]}
30... Kxg7 {[%clk 0:01:18.5]} 31. Bd3 {[%clk 0:00:07.8]} 31... Qe7 {[%clk
0:00:35.1]} 32. Qc1 {[%clk 0:00:01.6]} 32... Nd4 {[%clk 0:00:26.7]} 0-1

[Event "*** SCC Grand Prix: Titled Tuesday Blitz"]
[Site "Chess.com"]
[Date "2020.06.02"]
[Round "2"]
[White "viktorskliarov"]
[Black "Chopper1905"]
[Result "0-1"]
[WhiteElo "2570"]
[BlackElo "2932"]
[TimeControl "180+1"]
[EndTime "10:17:19 PDT"]
[Termination "Chopper1905 won on time"]

1. e4 {[%clk 0:03:00.9]} 1... e5 {[%clk 0:02:58.2]} 2. Nc3 {[%clk 0:02:59.9]}
2... Nf6 {[%clk 0:02:57.9]} 3. Bc4 {[%clk 0:02:59.8]} 3... Nc6 {[%clk
0:02:50.8]} 4. d3 {[%clk 0:02:59.6]} 4... Na5 {[%clk 0:02:48.9]} 5. Nge2 {[%clk
0:02:58.6]} 5... d6 {[%clk 0:02:44.6]} 6. O-O {[%clk 0:02:57.6]} 6... g6 {[%clk
0:02:41.3]} 7. Bb3 {[%clk 0:02:36.9]} 7... Nxb3 {[%clk 0:02:38.6]} 8. axb3
{[%clk 0:02:35.4]} 8... Bg7 {[%clk 0:02:39.5]} 9. f4 {[%clk 0:02:31.3]} 9... O-O
{[%clk 0:02:35.8]} 10. fxe5 {[%clk 0:02:17.3]} 10... dxe5 {[%clk 0:02:35.3]} 11.
h3 {[%clk 0:02:13.7]} 11... c6 {[%clk 0:02:33.2]} 12. Be3 {[%clk 0:02:12]} 12...
b6 {[%clk 0:02:18.2]} 13. Qd2 {[%clk 0:02:09.5]} 13... Be6 {[%clk 0:02:12.9]}
14. Bh6 {[%clk 0:02:07.6]} 14... Ne8 {[%clk 0:01:51.2]} 15. Bxg7 {[%clk
0:01:59.3]} 15... Nxg7 {[%clk 0:01:52.1]} 16. Qe3 {[%clk 0:01:45.1]} 16... f6
{[%clk 0:01:38.3]} 17. Ra3 {[%clk 0:01:39.5]} 17... Rf7 {[%clk 0:01:32.2]} 18.
Rfa1 {[%clk 0:01:38.1]} 18... Bc8 {[%clk 0:01:16.9]} 19. Na4 {[%clk 0:01:08]}
19... Rb8 {[%clk 0:01:14.5]} 20. c3 {[%clk 0:01:07.7]} 20... Ne6 {[%clk
0:00:49.6]} 21. d4 {[%clk 0:00:49.6]} 21... Rd7 {[%clk 0:00:47.7]} 22. dxe5
{[%clk 0:00:45]} 22... fxe5 {[%clk 0:00:44.1]} 23. Rf1 {[%clk 0:00:37.4]} 23...
Ba6 {[%clk 0:00:38.9]} 24. c4 {[%clk 0:00:34.3]} 24... Rd3 {[%clk 0:00:29.6]}
25. Qh6 {[%clk 0:00:27.6]} 25... Bb7 {[%clk 0:00:18.8]} 0-1

[Event "*** SCC Grand Prix: Titled Tuesday Blitz"]
[Site "Chess.com"]
[Date "2020.06.02"]
[Round "2"]
[White "GianmarcoVaR"]
[Black "politeplayer"]
[Result "1-0"]
[WhiteElo "2452"]
[BlackElo "2240"]
[TimeControl "180+1"]
[EndTime "10:17:20 PDT"]
[Termination "GianmarcoVaR won by resignation"]

1. d4 {[%clk 0:02:50.4]} 1... Nf6 {[%clk 0:02:58.9]} 2. Nf3 {[%clk 0:02:49.8]}
2... g6 {[%clk 0:02:59.1]} 3. Bg5 {[%clk 0:02:47]} 3... Bg7 {[%clk 0:02:59]} 4.
Nbd2 {[%clk 0:02:47.5]} 4... c5 {[%clk 0:02:58.8]} 5. e3 {[%clk 0:02:43.9]} 5...
cxd4 {[%clk 0:02:46.1]} 6. exd4 {[%clk 0:02:43.5]} 6... Qb6 {[%clk 0:02:44.8]}
7. Nc4 {[%clk 0:02:41.6]} 7... Qe6+ {[%clk 0:02:32]} 8. Be2 {[%clk 0:02:40.1]}
8... Ne4 {[%clk 0:02:18.6]} 9. Bh4 {[%clk 0:02:22.4]} 9... b5 {[%clk 0:02:12.6]}
10. Ne3 {[%clk 0:02:19.6]} 10... Bb7 {[%clk 0:01:55.2]} 11. Bxb5 {[%clk
0:02:16.7]} 11... g5 {[%clk 0:01:45.1]} 12. Nxg5 {[%clk 0:02:06.9]} 12... Nxg5
{[%clk 0:01:43.3]} 13. Bxg5 {[%clk 0:02:07.4]} 13... Qg6 {[%clk 0:01:36.4]} 14.
h4 {[%clk 0:01:54.6]} 14... h6 {[%clk 0:01:30.6]} 15. Bf4 {[%clk 0:01:49.1]}
15... Nc6 {[%clk 0:01:25.5]} 16. c3 {[%clk 0:01:48.7]} 16... O-O {[%clk
0:01:08.6]} 17. Bd3 {[%clk 0:01:41.6]} 17... Qf6 {[%clk 0:00:57]} 18. Bg3 {[%clk
0:01:25.1]} 18... e5 {[%clk 0:00:55.3]} 19. d5 {[%clk 0:01:15.9]} 19... Ne7
{[%clk 0:00:42.5]} 20. c4 {[%clk 0:01:16.1]} 20... e4 {[%clk 0:00:35.9]} 21.
Bxe4 {[%clk 0:01:15.9]} 21... Qxb2 {[%clk 0:00:35.7]} 22. Rb1 {[%clk 0:01:15.4]}
22... Qc3+ {[%clk 0:00:21.9]} 23. Kf1 {[%clk 0:01:15.3]} 23... Ba6 {[%clk
0:00:20.2]} 24. Rc1 {[%clk 0:01:04.7]} 24... Qa5 {[%clk 0:00:18.9]} 25. Bd6
{[%clk 0:00:47.8]} 25... Rfe8 {[%clk 0:00:18.2]} 26. Qg4 {[%clk 0:00:39.9]}
26... Rac8 {[%clk 0:00:15.4]} 27. Bxe7 {[%clk 0:00:38.3]} 27... Rxe7 {[%clk
0:00:14.9]} 28. Nf5 {[%clk 0:00:38.7]} 28... f6 {[%clk 0:00:04.5]} 29. Nxe7+
{[%clk 0:00:38]} 29... Kf7 {[%clk 0:00:04.9]} 30. d6 {[%clk 0:00:35.3]} 30...
Rxc4 {[%clk 0:00:03.7]} 31. Bd5+ {[%clk 0:00:31.9]} 31... Kf8 {[%clk 0:00:03.3]}
32. Bxc4 {[%clk 0:00:30.4]} 32... Bxc4+ {[%clk 0:00:02]} 33. Qxc4 {[%clk
0:00:29.8]} 1-0

[Event "*** SCC Grand Prix: Titled Tuesday Blitz"]
[Site "Chess.com"]
[Date "2020.06.02"]
[Round "2"]
[White "SaqoChess_Twitch"]
[Black "kidagent"]
[Result "0-1"]
[WhiteElo "2408"]
[BlackElo "2206"]
[TimeControl "180+1"]
[EndTime "10:17:20 PDT"]
[Termination "kidagent won by checkmate"]

1. d4 {[%clk 0:03:00.9]} 1... d5 {[%clk 0:02:59.4]} 2. c4 {[%clk 0:03:00.3]}
2... c6 {[%clk 0:02:59.5]} 3. Nc3 {[%clk 0:03:00.6]} 3... Nf6 {[%clk 0:02:57.8]}
4. e3 {[%clk 0:03:00.8]} 4... Bg4 {[%clk 0:02:48]} 5. Nf3 {[%clk 0:02:57.9]}
5... e6 {[%clk 0:02:37.4]} 6. Qc2 {[%clk 0:02:56.7]} 6... Be7 {[%clk 0:02:34.1]}
7. Ne5 {[%clk 0:02:56.6]} 7... Bh5 {[%clk 0:02:31.1]} 8. Bd3 {[%clk 0:02:57.2]}
8... Bg6 {[%clk 0:02:30.1]} 9. O-O {[%clk 0:02:56.4]} 9... Nbd7 {[%clk
0:02:24.9]} 10. f4 {[%clk 0:02:55.9]} 10... Bxd3 {[%clk 0:02:22.7]} 11. Qxd3
{[%clk 0:02:55.4]} 11... O-O {[%clk 0:02:20.2]} 12. Bd2 {[%clk 0:02:53.6]} 12...
c5 {[%clk 0:02:13.1]} 13. cxd5 {[%clk 0:02:39.9]} 13... exd5 {[%clk 0:02:03.5]}
14. Qe2 {[%clk 0:02:36.3]} 14... cxd4 {[%clk 0:01:59.9]} 15. exd4 {[%clk
0:02:37.2]} 15... Re8 {[%clk 0:01:59.5]} 16. Rf3 {[%clk 0:02:34.3]} 16... Qb6
{[%clk 0:01:54.7]} 17. Qd3 {[%clk 0:02:31]} 17... Qxb2 {[%clk 0:01:43.2]} 18.
Rb1 {[%clk 0:02:31]} 18... Qa3 {[%clk 0:01:41.7]} 19. Rxb7 {[%clk 0:02:31.4]}
19... Rad8 {[%clk 0:01:37.9]} 20. g4 {[%clk 0:02:24.8]} 20... Nxe5 {[%clk
0:01:33.9]} 21. dxe5 {[%clk 0:02:17.6]} 21... Nxg4 {[%clk 0:01:30.6]} 22. Nxd5
{[%clk 0:02:18]} 22... Qc5+ {[%clk 0:01:19.2]} 23. Be3 {[%clk 0:02:05.2]} 23...
Qxd5 {[%clk 0:01:08.9]} 24. Qxd5 {[%clk 0:02:02.9]} 24... Rxd5 {[%clk
0:01:09.8]} 25. Bxa7 {[%clk 0:01:59.4]} 25... Rd1+ {[%clk 0:01:04.9]} 26. Kg2
{[%clk 0:01:58.9]} 26... Rd2+ {[%clk 0:01:05]} 27. Kg3 {[%clk 0:01:56.5]} 27...
Nh6 {[%clk 0:01:03.2]} 28. f5 {[%clk 0:01:53.8]} 28... f6 {[%clk 0:00:57.8]} 29.
a4 {[%clk 0:01:31.3]} 29... fxe5 {[%clk 0:00:55.2]} 30. Be3 {[%clk 0:01:31.3]}
30... Rd3 {[%clk 0:00:46.4]} 31. a5 {[%clk 0:01:22.5]} 31... e4 {[%clk
0:00:44.3]} 32. f6 {[%clk 0:01:12.4]} 32... Bd6+ {[%clk 0:00:42.3]} 33. Kf2
{[%clk 0:01:04.9]} 33... Ng4+ {[%clk 0:00:39.7]} 34. Ke2 {[%clk 0:01:01.1]}
34... exf3+ {[%clk 0:00:39.1]} 35. Kxd3 {[%clk 0:01:01.2]} 35... Rxe3+ {[%clk
0:00:38.9]} 36. Kd2 {[%clk 0:01:01]} 36... Re2+ {[%clk 0:00:37.4]} 37. Kd3
{[%clk 0:01:00.6]} 37... Nxf6 {[%clk 0:00:36.8]} 38. a6 {[%clk 0:00:59.5]} 38...
Ra2 {[%clk 0:00:35.3]} 39. a7 {[%clk 0:00:59.7]} 39... f2 {[%clk 0:00:33.4]} 40.
Rb8+ {[%clk 0:00:58.2]} 40... Kf7 {[%clk 0:00:32.6]} 41. Rb7+ {[%clk 0:00:52.8]}
41... Kg6 {[%clk 0:00:32.1]} 42. Rb1 {[%clk 0:00:53.7]} 42... Rxa7 {[%clk
0:00:31]} 43. Ke2 {[%clk 0:00:54.6]} 43... Ra2+ {[%clk 0:00:30.6]} 44. Kf1
{[%clk 0:00:55.5]} 44... Ng4 {[%clk 0:00:30.3]} 45. Kg2 {[%clk 0:00:48.3]} 45...
Ne3+ {[%clk 0:00:29.5]} 46. Kh1 {[%clk 0:00:44.4]} 46... f1=Q+ {[%clk
0:00:28.4]} 47. Rxf1 {[%clk 0:00:44.8]} 47... Nxf1 {[%clk 0:00:28.8]} 48. h4
{[%clk 0:00:45.7]} 48... Bc5 {[%clk 0:00:26.9]} 49. h5+ {[%clk 0:00:46.6]} 49...
Kg5 {[%clk 0:00:26.5]} 50. h6 {[%clk 0:00:46.9]} 50... Ng3# {[%clk 0:00:26.7]}
0-1

[Event "*** SCC Grand Prix: Titled Tuesday Blitz"]
[Site "Chess.com"]
[Date "2020.06.02"]
[Round "2"]
[White "starplatinum2030"]
[Black "NFChess13"]
[Result "0-1"]
[WhiteElo "2089"]
[BlackElo "2384"]
[TimeControl "180+1"]
[EndTime "10:17:20 PDT"]
[Termination "NFChess13 won by checkmate"]

1. e4 {[%clk 0:03:00.9]} 1... c5 {[%clk 0:02:59.4]} 2. Nf3 {[%clk 0:03:01.2]}
2... e6 {[%clk 0:02:58.8]} 3. d4 {[%clk 0:03:01.6]} 3... cxd4 {[%clk 0:02:59.7]}
4. Nxd4 {[%clk 0:03:02.2]} 4... Nc6 {[%clk 0:02:55]} 5. Nb5 {[%clk 0:03:01.9]}
5... d6 {[%clk 0:02:53.6]} 6. c4 {[%clk 0:03:02.2]} 6... Nf6 {[%clk 0:02:49.7]}
7. N1c3 {[%clk 0:03:02.5]} 7... a6 {[%clk 0:02:49.5]} 8. Na3 {[%clk 0:03:03]}
8... Qa5 {[%clk 0:02:48]} 9. Bd2 {[%clk 0:02:46.3]} 9... Be7 {[%clk 0:02:48.2]}
10. Nd5 {[%clk 0:02:43]} 10... Qd8 {[%clk 0:02:47.7]} 11. Nxe7 {[%clk
0:02:43.1]} 11... Qxe7 {[%clk 0:02:48.6]} 12. Bd3 {[%clk 0:02:40.8]} 12... d5
{[%clk 0:02:48.9]} 13. cxd5 {[%clk 0:02:38.8]} 13... exd5 {[%clk 0:02:48.8]} 14.
O-O {[%clk 0:02:36]} 14... dxe4 {[%clk 0:02:46.7]} 15. Re1 {[%clk 0:02:20.6]}
15... O-O {[%clk 0:02:44.5]} 16. Bc3 {[%clk 0:02:14.8]} 16... Bf5 {[%clk
0:02:19.1]} 17. Bxf6 {[%clk 0:01:40.8]} 17... Qxf6 {[%clk 0:02:20]} 18. Bxe4
{[%clk 0:01:40.4]} 18... Bxe4 {[%clk 0:02:13.2]} 19. Rxe4 {[%clk 0:01:41.3]}
19... Qxb2 {[%clk 0:02:13.3]} 20. Nc4 {[%clk 0:01:41.7]} 20... Qf6 {[%clk
0:02:08.8]} 21. Rb1 {[%clk 0:01:41]} 21... Rad8 {[%clk 0:01:58.1]} 22. Qh5
{[%clk 0:01:31.1]} 22... b5 {[%clk 0:01:53.3]} 23. Ne3 {[%clk 0:01:23.1]} 23...
Rfe8 {[%clk 0:01:23.8]} 24. Nd5 {[%clk 0:00:59.3]} 24... Qg6 {[%clk 0:01:17.6]}
25. Qxg6 {[%clk 0:00:42.3]} 25... hxg6 {[%clk 0:01:18.5]} 26. Rxe8+ {[%clk
0:00:42.5]} 26... Rxe8 {[%clk 0:01:19.4]} 27. Nc7 {[%clk 0:00:43.1]} 27... Re2
{[%clk 0:01:12.7]} 28. Nxa6 {[%clk 0:00:40.6]} 28... Rxa2 {[%clk 0:01:12]} 29.
g3 {[%clk 0:00:40.3]} 29... Rxa6 {[%clk 0:01:11.3]} 30. Rxb5 {[%clk 0:00:39.1]}
30... f6 {[%clk 0:01:08.3]} 31. Rb7 {[%clk 0:00:38]} 31... g5 {[%clk 0:01:06.6]}
32. h3 {[%clk 0:00:34.7]} 32... Kh7 {[%clk 0:01:06.7]} 33. Kg2 {[%clk 0:00:33]}
33... Kg6 {[%clk 0:01:07.1]} 34. Rb5 {[%clk 0:00:32.3]} 34... Ra3 {[%clk
0:01:04.5]} 35. Rc5 {[%clk 0:00:30.5]} 35... Ne5 {[%clk 0:01:04.4]} 36. Rc7
{[%clk 0:00:30.9]} 36... Ra2 {[%clk 0:01:03.4]} 37. Rc3 {[%clk 0:00:26.1]} 37...
Kf5 {[%clk 0:01:02.1]} 38. g4+ {[%clk 0:00:24.1]} 38... Ke4 {[%clk 0:01:00.6]}
39. Re3+ {[%clk 0:00:21.3]} 39... Kd4 {[%clk 0:01:00.3]} 40. Kg3 {[%clk
0:00:14.6]} 40... Nd3 {[%clk 0:00:58]} 41. Re7 {[%clk 0:00:12.2]} 41... Nxf2
{[%clk 0:00:54.8]} 42. Rd7+ {[%clk 0:00:12.1]} 42... Ke3 {[%clk 0:00:55.2]} 43.
h4 {[%clk 0:00:08.3]} 43... Ne4+ {[%clk 0:00:50.7]} 44. Kh3 {[%clk 0:00:08.4]}
44... gxh4 {[%clk 0:00:51.3]} 45. Kxh4 {[%clk 0:00:08.7]} 45... Rh2# {[%clk
0:00:50.6]} 0-1

[Event "*** SCC Grand Prix: Titled Tuesday Blitz"]
[Site "Chess.com"]
[Date "2020.06.02"]
[Round "2"]
[White "Micki-taryan"]
[Black "DanielMieles1985"]
[Result "1-0"]
[WhiteElo "3045"]
[BlackElo "2592"]
[TimeControl "180+1"]
[EndTime "10:17:23 PDT"]
[Termination "Micki-taryan won by resignation"]

1. Nf3 {[%clk 0:03:00.9]} 1... c5 {[%clk 0:02:59.1]} 2. e4 {[%clk 0:03:00]} 2...
Nc6 {[%clk 0:02:53]} 3. Bb5 {[%clk 0:02:59.2]} 3... g6 {[%clk 0:02:53]} 4. O-O
{[%clk 0:02:58]} 4... Bg7 {[%clk 0:02:53]} 5. Bxc6 {[%clk 0:02:56.1]} 5... dxc6
{[%clk 0:02:51.8]} 6. d3 {[%clk 0:02:56.4]} 6... e5 {[%clk 0:02:38.1]} 7. Be3
{[%clk 0:02:51.4]} 7... b6 {[%clk 0:02:36]} 8. Nbd2 {[%clk 0:02:48.8]} 8... Qc7
{[%clk 0:02:32.6]} 9. h3 {[%clk 0:02:48.6]} 9... Nf6 {[%clk 0:02:29.5]} 10. a3
{[%clk 0:02:48.8]} 10... a5 {[%clk 0:02:19.5]} 11. Nc4 {[%clk 0:02:47.6]} 11...
Nd7 {[%clk 0:02:17.4]} 12. Nfd2 {[%clk 0:02:47.1]} 12... b5 {[%clk 0:02:13.6]}
13. Nxa5 {[%clk 0:02:20.5]} 13... Qxa5 {[%clk 0:02:06.8]} 14. Nb3 {[%clk
0:02:16.7]} 14... Qb6 {[%clk 0:02:01.8]} 15. Qd2 {[%clk 0:02:16.4]} 15... O-O
{[%clk 0:01:57.6]} 16. f3 {[%clk 0:02:14.2]} 16... Re8 {[%clk 0:01:56.6]} 17.
Qf2 {[%clk 0:02:14.2]} 17... Bf8 {[%clk 0:01:56.1]} 18. Rad1 {[%clk 0:02:14.4]}
18... Qc7 {[%clk 0:01:54.3]} 19. Nxc5 {[%clk 0:02:14]} 19... Nxc5 {[%clk
0:01:55.2]} 20. Bxc5 {[%clk 0:02:14.6]} 20... Bxc5 {[%clk 0:01:55.9]} 21. Qxc5
{[%clk 0:02:15.3]} 21... Qa7 {[%clk 0:01:56.6]} 22. Qf2 {[%clk 0:02:00.4]} 22...
Be6 {[%clk 0:01:52.1]} 23. g4 {[%clk 0:01:58.1]} 23... Qxf2+ {[%clk 0:01:48.5]}
24. Kxf2 {[%clk 0:01:57.8]} 24... c5 {[%clk 0:01:49.4]} 25. Ke3 {[%clk
0:01:55.7]} 25... Ra4 {[%clk 0:01:48.1]} 26. Rd2 {[%clk 0:01:49.4]} 26... g5
{[%clk 0:01:47.6]} 27. h4 {[%clk 0:01:47.7]} 27... h6 {[%clk 0:01:46.3]} 28. Rh1
{[%clk 0:01:48.6]} 28... Kg7 {[%clk 0:01:42]} 29. Rdh2 {[%clk 0:01:49]} 29... c4
{[%clk 0:01:36.9]} 30. hxg5 {[%clk 0:01:47.3]} 30... hxg5 {[%clk 0:01:37.8]} 31.
Rh7+ {[%clk 0:01:47.9]} 31... Kf6 {[%clk 0:01:37.9]} 32. R1h6+ {[%clk
0:01:45.9]} 32... Ke7 {[%clk 0:01:37.8]} 33. Rg7 {[%clk 0:01:42.6]} 33... c3
{[%clk 0:01:28.4]} 34. bxc3 {[%clk 0:01:39.1]} 34... Rxa3 {[%clk 0:01:28.4]} 35.
Rxg5 {[%clk 0:01:39.6]} 35... Rxc3 {[%clk 0:01:27.7]} 36. Rxe5 {[%clk
0:01:37.4]} 36... Rb8 {[%clk 0:01:19]} 37. Rh2 {[%clk 0:01:17.9]} 37... b4
{[%clk 0:01:17.9]} 38. f4 {[%clk 0:01:17.3]} 38... Kd6 {[%clk 0:01:16.3]} 39. g5
{[%clk 0:01:14.9]} 39... b3 {[%clk 0:01:07.8]} 40. cxb3 {[%clk 0:01:15.8]} 40...
Rbxb3 {[%clk 0:01:08]} 41. Rd2 {[%clk 0:01:15.8]} 41... Bc4 {[%clk 0:01:08.6]}
42. Kd4 {[%clk 0:01:13.7]} 42... Bxd3 {[%clk 0:01:07.3]} 43. Rd5+ {[%clk
0:01:11.6]} 43... Kc6 {[%clk 0:00:59.9]} 44. Ke5 {[%clk 0:01:11.9]} 44... Bc4
{[%clk 0:00:36.5]} 45. Rd6+ {[%clk 0:01:09.7]} 45... Kc5 {[%clk 0:00:36.6]} 46.
Rd8 {[%clk 0:01:08.7]} 46... Rf3 {[%clk 0:00:34.2]} 47. Rc8+ {[%clk 0:01:05.5]}
47... Kb4 {[%clk 0:00:33]} 48. Rd4 {[%clk 0:01:05.8]} 48... Rbc3 {[%clk
0:00:33.4]} 49. f5 {[%clk 0:01:05.5]} 49... Kb3 {[%clk 0:00:32.3]} 50. Kf6
{[%clk 0:01:03.3]} 50... Kc2 {[%clk 0:00:27.1]} 51. Rdxc4 {[%clk 0:01:02.1]} 1-0